fUST/lending_fUST_20240906
["ID","MTS","AMOUNT","RATE_DAILY","PERIOD"]
[337278175,1725573103214,-500.0,0.00023835,2]
[337278176,1725573103223,-500.0,0.00023835,2]
[337278177,1725573103233,-8686.28,0.00023835,2]
[337278178,1725573103243,-1353.11,0.00023835,2]
[337278179,1725573103253,-500.0,0.00023835,2]
[337278180,1725573103262,-500.0,0.00023835,2]
[337278181,1725573103272,-500.0,0.00023835,2]
[337278182,1725573103281,-500.0,0.00023835,2]
[337278183,1725573103291,-500.0,0.00023835,2]
[337278184,1725573103301,-500.0,0.00023835,2]
[337278185,1725573103310,-500.0,0.00023835,2]
[337278186,1725573103320,-590.9,0.00023835,2]
[337278187,1725573103329,-704.28,0.00023835,2]
[337278188,1725573103339,-1233.53,0.00023835,2]
[337278189,1725573103348,-500.0,0.00023835,2]
[337278190,1725573103357,-500.0,0.00023835,2]
[337278191,1725573103367,-500.0,0.00023835,2]
[337278192,1725573103377,-1358.39,0.00023835,2]
[337278193,1725573103386,-900.4,0.00023835,2]
[337278194,1725573103397,-823.63,0.00023835,2]
[337278195,1725573103407,-500.0,0.00023835,2]
[337278196,1725573103418,-509.12,0.00023835,2]
[337278197,1725573103429,-7723.59,0.00023835,2]
[337278198,1725573103440,-1103.42,0.00023835,2]
[337278199,1725573103453,-500.0,0.00023835,2]
[337278200,1725573103465,-500.0,0.00023835,2]
[337278201,1725573103476,-513.45251777,0.00023835,2]
[337278202,1725573103487,-500.0,0.00023835,2]
[337278203,1725573103499,-500.0,0.00023835,2]
[337278204,1725573103508,-628.33,0.00023835,2]
[337278205,1725573103518,-500.0,0.00023835,2]
[337278206,1725573103528,-500.0,0.00023835,2]
[337278207,1725573103542,-2578.29,0.00023835,2]
[337278208,1725573103554,-500.0,0.00023835,2]
[337278209,1725573103566,-500.0,0.00023835,2]
[337278210,1725573103578,-500.0,0.00023835,2]
[337278211,1725573103588,-500.0,0.00023835,2]
[337278212,1725573103599,-1129.73,0.00023835,2]
[337278213,1725573103610,-1133.56,0.00023835,2]
[337278214,1725573103621,-1144.17,0.00023835,2]
[337278215,1725573103633,-938.87,0.00023835,2]
[337278216,1725573103644,-500.0,0.00023835,2]
[337278217,1725573103657,-500.0,0.00023835,2]
[337278218,1725573103668,-3954.36,0.00023835,2]
[337278219,1725573103679,-500.0,0.00023835,2]
[337278220,1725573103689,-500.0,0.00023835,2]
[337278221,1725573103700,-500.0,0.00023835,2]
[337278222,1725573103710,-563.72,0.00023835,2]
[337278223,1725573103720,-500.0,0.00023835,2]
[337278224,1725573103732,-828.83,0.00023835,2]
[337278225,1725573103744,-500.0,0.00023835,2]
[337278226,1725573103756,-7650.67,0.00023835,2]
[337278227,1725573103767,-500.0,0.00023835,2]
[337278228,1725573103778,-686.81,0.00023835,2]
[337278229,1725573103789,-638.15,0.00023835,2]
[337278230,1725573103800,-500.0,0.00023835,2]
[337278231,1725573103811,-500.0,0.00023835,2]
[337278232,1725573103822,-500.0,0.00023835,2]
[337278233,1725573103834,-871.34,0.00023835,2]
[337278234,1725573103846,-500.0,0.00023835,2]
[337278235,1725573103857,-500.0,0.00023835,2]
[337278236,1725573103867,-500.0,0.00023835,2]
[337278237,1725573103878,-970.45,0.00023835,2]
[337278238,1725573103888,-500.0,0.00023835,2]
[337278239,1725573103901,-500.0,0.00023835,2]
[337278240,1725573103912,-500.0,0.00023835,2]
[337278241,1725573104055,-875.36,0.00023835,2]
[337278242,1725573104066,-500.0,0.00023835,2]
[337278243,1725573104079,-1709.21,0.00023835,2]
[337278244,1725573104091,-5424.64,0.00023835,2]
[337278245,1725573104102,-500.0,0.00023835,2]
[337278246,1725573104111,-1320.86,0.00023835,2]
[337278247,1725573104121,-646.37,0.00023835,2]
[337278248,1725573104132,-777.39,0.00023835,2]
[337278249,1725573104142,-4959.4,0.00023835,2]
[337278250,1725573104151,-1196.83,0.00023835,2]
[337278251,1725573104161,-500.0,0.00023835,2]
[337278252,1725573104171,-589.02,0.00023835,2]
[337278253,1725573104180,-500.0,0.00023835,2]
[337278254,1725573104189,-500.0,0.00023835,2]
[337278255,1725573104199,-500.0,0.00023835,2]
[337278256,1725573104208,-500.0,0.00023835,2]
[337278257,1725573104218,-500.0,0.00023835,2]
[337278258,1725573104227,-500.0,0.00023835,2]
[337278259,1725573104237,-500.0,0.00023835,2]
[337278260,1725573104247,-500.0,0.00023835,2]
[337278261,1725573104257,-948.09,0.00023835,2]
[337278262,1725573104266,-500.0,0.00023835,2]
[337278263,1725573104276,-500.0,0.00023835,2]
[337278264,1725573104285,-500.0,0.00023835,2]
[337278265,1725573104295,-500.0,0.00023835,2]
[337278266,1725573104305,-500.0,0.00023835,2]
[337278267,1725573104315,-500.0,0.00023835,2]
[337278268,1725573104325,-500.0,0.00023835,2]
[337278269,1725573104335,-500.0,0.00023835,2]
[337278270,1725573104345,-946.95,0.00023835,2]
[337278271,1725573104355,-500.0,0.00023835,2]
[337278272,1725573104365,-500.0,0.00023835,2]
[337278273,1725573104375,-500.0,0.00023835,2]
[337278274,1725573104385,-500.0,0.00023835,2]
[337278275,1725573104395,-6005.41,0.00023835,2]
[337278276,1725573104405,-1557.31,0.00023835,2]
[337278277,1725573104415,-500.0,0.00023835,2]
[337278278,1725573104425,-7130.97,0.00023835,2]
[337278279,1725573104435,-500.0,0.00023835,2]
[337278280,1725573104445,-983.46,0.00023835,2]
[337278281,1725573104455,-500.0,0.00023835,2]
[337278282,1725573104464,-500.0,0.00023835,2]
[337278283,1725573104474,-788.94,0.00023835,2]
[337278284,1725573104483,-500.0,0.00023835,2]
[337278285,1725573104493,-1361.66,0.00023835,2]
[337278286,1725573104502,-500.0,0.00023835,2]
[337278287,1725573104512,-500.0,0.00023835,2]
[337278288,1725573104522,-3476.04,0.00023835,2]
[337278289,1725573104533,-745.29,0.00023835,2]
[337278290,1725573104544,-500.0,0.00023835,2]
[337278291,1725573104554,-500.0,0.00023835,2]
[337278292,1725573104564,-500.0,0.00023835,2]
[337278293,1725573104575,-500.0,0.00023835,2]
[337278294,1725573104584,-1053.94,0.00023835,2]
[337278295,1725573104594,-500.0,0.00023835,2]
[337278296,1725573104604,-500.0,0.00023835,2]
[337278297,1725573104614,-500.0,0.00023835,2]
[337278298,1725573104625,-899.19,0.00023835,2]
[337278299,1725573104634,-500.0,0.00023835,2]
[337278300,1725573104644,-1880.59,0.00023835,2]
[337278301,1725573104655,-563.87,0.00023835,2]
[337278302,1725573104664,-500.0,0.00023835,2]
[337278303,1725573104674,-500.0,0.00023835,2]
[337278304,1725573104683,-2500.0,0.000239,2]
[337278305,1725573104693,-2500.0,0.00023909,2]
[337278306,1725573104703,-2500.0,0.00023917,2]
[337278307,1725573104713,-2500.0,0.00023926,2]
[337278308,1725573104723,-2500.0,0.00023935,2]
[337278309,1725573104733,-2500.0,0.00023944,2]
[337278310,1725573104743,-2500.0,0.00023953,2]
[337278311,1725573104753,-2500.0,0.00023961,2]
[337278312,1725573104763,-2500.0,0.0002397,2]
[337278313,1725573104772,-500.0,0.00023979,2]
[337278314,1725573104782,-2500.0,0.00023979,2]
[337278315,1725573104792,-454.01549311,0.0002398,4]
[337278316,1725573104801,-2000.0,0.00024,2]
[337278317,1725573104811,-2000.0,0.00024,2]
[337278318,1725573104821,-2000.0,0.00024,2]
[337278319,1725573104832,-2000.0,0.00024,2]
[337278320,1725573104842,-2000.0,0.00024,2]
[337278321,1725573104852,-2000.0,0.00024,2]
[337278322,1725573104861,-2000.0,0.00024,2]
[337278323,1725573104871,-2000.0,0.00024,2]
[337278324,1725573104881,-2000.0,0.00024,2]
[337278325,1725573104891,-2000.0,0.00024,2]
[337278326,1725573104900,-2000.0,0.00024,2]
[337278327,1725573104909,-2000.0,0.00024,2]
[337278328,1725573104919,-2000.0,0.00024,2]
[337278329,1725573104929,-2000.0,0.00024,2]
[337278330,1725573104939,-2000.0,0.00024,2]
[337278331,1725573104948,-2000.0,0.00024,2]
[337278332,1725573104957,-845.0,0.00024,2]
[337278333,1725573104967,-500.0,0.00024,8]
[337278334,1725573104976,-319.60488792,0.00024,2]
[337278335,1725573104986,-500.0,0.00024,12]
[337278336,1725573104997,-1991.35,0.00024,10]
[337278337,1725573105008,-6016.24272982,0.00024,2]
[337278338,1725573105018,-1500.0,0.00024022,2]
[337278339,1725573105030,-2500.0,0.00024109,2]
[337278340,1725573105040,-500.0,0.00024109,2]
[337278341,1725573105049,-500.0,0.00024109,2]
[337278342,1725573105059,-500.0,0.00024109,2]
[337278343,1725573105068,-500.0,0.00024109,2]
[337278344,1725573105080,-500.0,0.00024109,2]
[337278345,1725573105090,-1061.25,0.00024109,2]
[337278346,1725573105100,-888.02,0.00024109,2]
[337278347,1725573105109,-500.0,0.00024109,2]
[337278348,1725573105119,-500.0,0.00024109,2]
[337278349,1725573105128,-500.0,0.00024109,2]
[337278350,1725573105138,-500.0,0.00024109,2]
[337278351,1725573105148,-500.0,0.00024109,2]
[337278352,1725573105158,-276.66803584,0.00024109,2]
[337278353,1725573105167,-500.0,0.00024109,2]
[337278354,1725573105177,-1260.83,0.00024109,2]
[337278355,1725573105186,-500.0,0.00024109,2]
[337278356,1725573105195,-500.0,0.00024109,2]
[337278357,1725573105205,-500.0,0.00024109,2]
[337278358,1725573105215,-500.0,0.00024109,2]
[337278359,1725573105224,-500.0,0.00024109,2]
[337278360,1725573105233,-500.0,0.00024109,2]
[337278361,1725573105242,-500.0,0.00024109,2]
[337278362,1725573105251,-500.0,0.00024109,2]
[337278363,1725573105260,-500.0,0.00024109,2]
[337278364,1725573105270,-500.0,0.00024109,2]
[337278365,1725573105279,-829.3,0.00024109,2]
[337278366,1725573105288,-500.0,0.00024109,2]
[337278367,1725573105298,-500.0,0.00024109,2]
[337278368,1725573105308,-500.0,0.00024109,2]
[337278369,1725573105317,-427.33664872,0.00024109,2]
[337278370,1725573105327,-500.0,0.00024109,2]
[337278371,1725573105336,-500.0,0.00024109,2]
[337278372,1725573105346,-500.0,0.00024109,2]
[337278373,1725573105355,-756.67,0.00024109,2]
[337278374,1725573105364,-500.0,0.00024109,2]
[337278375,1725573105373,-303.91951472,0.00024109,2]
[337278376,1725573105383,-500.0,0.00024109,2]
[337278377,1725573105393,-500.0,0.00024109,2]
[337278378,1725573105404,-500.0,0.00024109,2]
[337278379,1725573105415,-500.0,0.00024109,2]
[337278380,1725573105427,-500.0,0.00024109,2]
[337278381,1725573105438,-500.0,0.00024109,2]
[337278382,1725573105448,-500.0,0.00024109,2]
[337278383,1725573105458,-393.56205757,0.00024109,2]
[337278384,1725573105467,-500.0,0.00024109,2]
[337278385,1725573105478,-500.0,0.00024109,2]
[337278386,1725573105489,-500.0,0.00024109,2]
[337278387,1725573105499,-529.72,0.00024109,2]
[337278388,1725573105510,-500.0,0.00024109,2]
[337278389,1725573105519,-500.0,0.00024109,2]
[337278390,1725573105530,-500.0,0.00024109,2]
[337278391,1725573105542,-500.0,0.00024109,2]
[337278392,1725573105553,-1089.23,0.00024109,2]
[337278393,1725573105564,-776.91,0.00024109,2]
[337278394,1725573105575,-500.0,0.00024109,2]
[337278395,1725573105586,-647.21042574,0.00024109,2]
[337278396,1725573105598,-500.0,0.00024109,2]
[337278397,1725573105610,-500.0,0.00024109,2]
[337278398,1725573105621,-500.0,0.00024109,2]
[337278399,1725573105634,-271.13270541,0.00024109,2]
[337278400,1725573105647,-500.0,0.00024109,2]
[337278401,1725573105657,-1257.36,0.00024109,2]
[337278402,1725573105668,-1799.22,0.00024109,2]
[337278403,1725573105680,-500.0,0.00024109,2]
[337278404,1725573105691,-872.21,0.00024109,2]
[337278405,1725573105701,-500.0,0.00024109,2]
[337278406,1725573105711,-500.0,0.00024109,2]
[337278407,1725573105720,-500.0,0.00024109,2]
[337278408,1725573105730,-690.94,0.00024109,2]
[337278409,1725573105741,-500.0,0.00024109,2]
[337278410,1725573105751,-500.0,0.00024109,2]
[337278411,1725573105761,-500.0,0.00024109,2]
[337278412,1725573105771,-500.0,0.00024109,2]
[337278413,1725573105781,-500.0,0.00024109,2]
[337278414,1725573105792,-500.0,0.00024109,2]
[337278415,1725573105804,-722.69,0.00024109,2]
[337278416,1725573105815,-500.0,0.00024109,2]
[337278417,1725573105826,-500.0,0.00024109,2]
[337278418,1725573105838,-1492.06,0.00024109,2]
[337278419,1725573105848,-500.0,0.00024109,2]
[337278420,1725573105859,-514.57710035,0.00024109,2]
[337278421,1725573105872,-500.0,0.00024109,2]
[337278422,1725573105892,-500.0,0.00024109,2]
[337278423,1725573105900,-500.0,0.00024109,2]
[337278424,1725573105909,-500.0,0.00024109,2]
[337278425,1725573105919,-500.0,0.00024109,2]
[337278426,1725573105930,-500.0,0.00024109,2]
[337278427,1725573105939,-500.0,0.00024109,2]
[337278428,1725573105948,-802.19,0.00024109,2]
[337278429,1725573105960,-500.0,0.00024109,2]
[337278430,1725573105969,-500.0,0.00024109,2]
[337278431,1725573105979,-500.0,0.00024109,2]
[337278432,1725573105988,-500.0,0.00024109,2]
[337278433,1725573105997,-552.14,0.00024109,2]
[337278434,1725573106007,-500.0,0.00024109,2]
[337278435,1725573106017,-500.0,0.00024109,2]
[337278436,1725573106026,-990.72,0.00024109,2]
[337278437,1725573106036,-500.0,0.00024109,2]
[337278438,1725573106046,-500.0,0.00024109,2]
[337278439,1725573106056,-500.0,0.00024109,2]
[337278440,1725573106066,-967.82,0.00024109,2]
[337278441,1725573106076,-888.41,0.00024109,2]
[337278442,1725573106085,-500.0,0.00024109,2]
[337278443,1725573106099,-606.39,0.00024109,2]
[337278444,1725573106110,-500.0,0.00024109,2]
[337278445,1725573106121,-500.0,0.00024109,2]
[337278446,1725573106137,-500.0,0.00024109,2]
[337278447,1725573106147,-1160.38,0.00024109,2]
[337278448,1725573106157,-1034.45,0.00024109,2]
[337278449,1725573106167,-500.0,0.00024109,2]
[337278450,1725573106179,-500.0,0.00024109,2]
[337278451,1725573106191,-500.0,0.00024109,2]
[337278452,1725573106202,-500.0,0.00024109,2]
[337278453,1725573106213,-500.0,0.00024109,2]
[337278454,1725573106224,-500.0,0.00024109,2]
[337278455,1725573106234,-500.0,0.00024109,2]
[337278456,1725573106244,-500.0,0.00024109,2]
[337278457,1725573106255,-500.0,0.00024109,2]
[337278458,1725573106265,-500.0,0.00024109,2]
[337278459,1725573106275,-500.0,0.00024109,2]
[337278460,1725573106285,-500.0,0.00024109,2]
[337278461,1725573106296,-424.21553186,0.00024109,2]
[337278462,1725573106306,-500.0,0.00024109,2]
[337278463,1725573106316,-500.0,0.00024109,2]
[337278464,1725573106325,-499.99806611,0.00024109,2]
[337278465,1725573106335,-500.0,0.00024109,2]
[337278466,1725573106345,-1055.78,0.00024109,2]
[337278467,1725573106354,-709.32,0.00024109,2]
[337278468,1725573106364,-500.0,0.00024109,2]
[337278469,1725573106374,-500.0,0.00024109,2]
[337278470,1725573106387,-528.03,0.00024109,2]
[337278471,1725573106397,-500.0,0.00024109,2]
[337278472,1725573106407,-500.0,0.00024109,2]
[337278473,1725573106417,-500.0,0.00024109,2]
[337278474,1725573106428,-500.0,0.00024109,2]
[337278475,1725573106438,-500.0,0.00024109,2]
[337278476,1725573106448,-500.0,0.00024109,2]
[337278477,1725573106459,-500.0,0.00024109,2]
[337278478,1725573106469,-500.0,0.00024109,2]
[337278479,1725573106481,-500.0,0.00024109,2]
[337278480,1725573106493,-1309.6,0.00024109,2]
[337278481,1725573106501,-597.29,0.00024109,2]
[337278482,1725573106511,-500.0,0.00024109,2]
[337278483,1725573106522,-707.89,0.00024109,2]
[337278484,1725573106534,-500.0,0.00024109,2]
[337278485,1725573106545,-537.47870745,0.00024109,2]
[337278486,1725573106555,-500.0,0.00024109,2]
[337278487,1725573106566,-637.08,0.00024109,2]
[337278488,1725573106578,-500.0,0.00024109,2]
[337278489,1725573106588,-500.0,0.00024109,2]
[337278490,1725573106598,-500.0,0.00024109,2]
[337278491,1725573106610,-500.0,0.00024109,2]
[337278492,1725573106621,-500.0,0.00024109,2]
[337278493,1725573106631,-500.0,0.00024109,2]
[337278494,1725573106642,-500.0,0.00024109,2]
[337278495,1725573106652,-500.0,0.00024109,2]
[337278496,1725573106661,-513.9500893,0.00024109,2]
[337278497,1725573106670,-1529.25,0.00024109,2]
[337278498,1725573106680,-500.0,0.00024109,2]
[337278499,1725573106689,-512.48,0.00024109,2]
[337278500,1725573106700,-1497.88,0.00024109,2]
[337278501,1725573106712,-500.0,0.00024109,2]
[337278502,1725573106721,-500.0,0.00024109,2]
[337278503,1725573106731,-3384.84,0.00024109,2]
[337278504,1725573106741,-1224.58,0.00024109,2]
[337278505,1725573106752,-500.0,0.00024109,2]
[337278506,1725573106763,-500.0,0.00024109,2]
[337278507,1725573106774,-1508.59,0.00024109,2]
[337278508,1725573106783,-500.0,0.00024109,2]
[337278509,1725573106792,-500.0,0.00024109,2]
[337278510,1725573106801,-500.0,0.00024109,2]
[337278511,1725573106810,-948.48,0.00024109,2]
[337278512,1725573106819,-500.0,0.00024109,2]
[337278513,1725573106828,-509.6,0.00024109,2]
[337278514,1725573106838,-500.0,0.00024109,2]
[337278515,1725573106847,-3334.83,0.00024109,2]
[337278516,1725573106856,-500.0,0.00024109,2]
[337278517,1725573106865,-956.86,0.00024109,2]
[337278518,1725573106874,-500.0,0.00024109,2]
[337278519,1725573106886,-500.0,0.00024109,2]
[337278520,1725573106895,-500.0,0.00024109,2]
[337278521,1725573106908,-807.1,0.00024109,2]
[337278522,1725573106918,-500.0,0.00024109,2]
[337278523,1725573106927,-500.0,0.00024109,2]
[337278524,1725573106936,-500.0,0.00024109,2]
[337278525,1725573106946,-500.0,0.00024109,2]
[337278526,1725573106956,-545.62,0.00024109,2]
[337278527,1725573106966,-500.0,0.00024109,2]
[337278528,1725573106976,-500.0,0.00024109,2]
[337278529,1725573106985,-500.0,0.00024109,2]
[337278530,1725573106994,-500.0,0.00024109,2]
[337278531,1725573107006,-500.0,0.00024109,2]
[337278532,1725573107015,-1234.38,0.00024109,2]
[337278533,1725573107024,-500.0,0.00024109,2]
[337278534,1725573107033,-1688.93,0.00024109,2]
[337278535,1725573107043,-500.0,0.00024109,2]
[337278536,1725573107052,-500.0,0.00024109,2]
[337278537,1725573107061,-775.84,0.00024109,2]
[337278538,1725573107070,-6155.32,0.00024109,2]
[337278539,1725573107080,-500.0,0.00024109,2]
[337278540,1725573107089,-1513.75,0.00024109,2]
[337278541,1725573107099,-500.0,0.00024109,2]
[337278542,1725573107108,-526.65746391,0.00024109,2]
[337278543,1725573107117,-1384.94,0.00024109,2]
[337278544,1725573107127,-200.0,0.00024109,2]
[337278545,1725573107136,-891.8,0.00024109,2]
[337278546,1725573107146,-1454.37,0.00024109,2]
[337278547,1725573107155,-500.0,0.00024109,2]
[337278548,1725573107164,-727.07,0.00024109,2]
[337278549,1725573107174,-500.0,0.00024109,2]
[337278550,1725573107183,-803.53,0.00024109,2]
[337278551,1725573107193,-500.0,0.00024109,2]
[337278552,1725573107202,-500.0,0.00024109,2]
[337278553,1725573107212,-500.0,0.00024109,2]
[337278554,1725573107222,-500.0,0.00024109,2]
[337278555,1725573107232,-500.0,0.00024109,2]
[337278556,1725573107242,-3161.3,0.00024109,2]
[337278557,1725573107252,-1185.19,0.00024109,2]
[337278558,1725573107262,-831.41,0.00024109,2]
[337278559,1725573107271,-369.92757897,0.00024109,2]
[337278560,1725573107281,-1174.57,0.00024109,2]
[337278561,1725573107292,-500.0,0.00024109,2]
[337278562,1725573107301,-500.0,0.00024109,2]
[337278563,1725573107311,-7144.8,0.00024109,2]
[337278564,1725573107321,-500.0,0.00024109,2]
[337278565,1725573107330,-500.0,0.00024109,2]
[337278566,1725573107340,-11733.4,0.00024109,2]
[337278567,1725573107349,-500.0,0.00024109,2]
[337278568,1725573107359,-500.0,0.00024109,2]
[337278569,1725573107370,-500.0,0.00024109,2]
[337278570,1725573107379,-4398.52,0.00024109,2]
[337278571,1725573107389,-1185.15,0.00024109,2]
[337278572,1725573107399,-544.5,0.00024109,2]
[337278573,1725573107409,-1466.8,0.00024109,2]
[337278574,1725573107418,-500.0,0.00024109,2]
[337278575,1725573107429,-13227.74,0.00024109,2]
[337278576,1725573107438,-500.0,0.00024109,2]
[337278577,1725573107448,-500.0,0.00024109,2]
[337278578,1725573107458,-8686.28,0.00024109,2]
[337278579,1725573107468,-1353.11,0.00024109,2]
[337278580,1725573107477,-500.0,0.00024109,2]
[337278581,1725573107488,-155.12219349,0.00024109,2]
[337278582,1725573107497,-636.68212617,0.00024109,2]
[337278583,1725573107506,-500.0,0.00024109,2]
[337278584,1725573107516,-500.0,0.00024109,2]
[337278585,1725573107525,-500.0,0.00024109,2]
[337278586,1725573107538,-500.0,0.00024109,2]
[337278587,1725573107548,-590.9,0.00024109,2]
[337278588,1725573107557,-704.28,0.00024109,2]
[337278589,1725573107568,-1233.53,0.00024109,2]
[337278590,1725573107578,-500.0,0.00024109,2]
[337278591,1725573107588,-500.0,0.00024109,2]
[337278592,1725573107598,-500.0,0.00024109,2]
[337278593,1725573107608,-1358.39,0.00024109,2]
[337278594,1725573107619,-900.4,0.00024109,2]
[337278595,1725573107629,-823.63,0.00024109,2]
[337278596,1725573107639,-500.0,0.00024109,2]
[337278597,1725573107648,-509.12,0.00024109,2]
[337278598,1725573107658,-7723.59,0.00024109,2]
[337278599,1725573107668,-1103.42,0.00024109,2]
[337278600,1725573107677,-500.0,0.00024109,2]
[337278601,1725573107687,-528.24374524,0.00024109,2]
[337278602,1725573107697,-500.0,0.00024109,2]
[337278603,1725573107707,-500.0,0.00024109,2]
[337278604,1725573107716,-628.33,0.00024109,2]
[337278605,1725573107725,-500.0,0.00024109,2]
[337278606,1725573107735,-500.0,0.00024109,2]
[337278607,1725573107744,-2578.29,0.00024109,2]
[337278608,1725573107754,-500.0,0.00024109,2]
[337278609,1725573107764,-500.0,0.00024109,2]
[337278610,1725573107773,-500.0,0.00024109,2]
[337278611,1725573107783,-500.0,0.00024109,2]
[337278612,1725573107792,-1129.73,0.00024109,2]
[337278613,1725573107802,-1133.56,0.00024109,2]
[337278614,1725573107812,-1144.17,0.00024109,2]
[337278615,1725573107822,-938.87,0.00024109,2]
[337278616,1725573107833,-500.0,0.00024109,2]
[337278617,1725573107843,-500.0,0.00024109,2]
[337278618,1725573107853,-3954.36,0.00024109,2]
[337278619,1725573107862,-500.0,0.00024109,2]
[337278620,1725573107871,-500.0,0.00024109,2]
[337278621,1725573107881,-500.0,0.00024109,2]
[337278622,1725573107891,-563.72,0.00024109,2]
[337278623,1725573107900,-500.0,0.00024109,2]
[337278624,1725573107910,-828.83,0.00024109,2]
[337278625,1725573107921,-500.0,0.00024109,2]
[337278626,1725573107931,-7650.67,0.00024109,2]
[337278627,1725573107941,-500.0,0.00024109,2]
[337278628,1725573107951,-686.81,0.00024109,2]
[337278629,1725573107961,-638.15,0.00024109,2]
[337278630,1725573107971,-199.92680381,0.00024109,2]
[337278631,1725573107982,-500.0,0.00024109,2]
[337278632,1725573107992,-500.0,0.00024109,2]
[337278633,1725573108003,-871.34,0.00024109,2]
[337278634,1725573108014,-500.0,0.00024109,2]
[337278635,1725573108025,-500.0,0.00024109,2]
[337278636,1725573108036,-500.0,0.00024109,2]
[337278637,1725573108045,-970.45,0.00024109,2]
[337278638,1725573108055,-500.0,0.00024109,2]
[337278639,1725573108065,-500.0,0.00024109,2]
[337278640,1725573108076,-500.0,0.00024109,2]
[337278641,1725573108087,-875.36,0.00024109,2]
[337278642,1725573108097,-500.0,0.00024109,2]
[337278643,1725573108106,-1709.21,0.00024109,2]
[337278644,1725573108116,-5424.64,0.00024109,2]
[337278645,1725573108125,-500.0,0.00024109,2]
[337278646,1725573108137,-1320.86,0.00024109,2]
[337278647,1725573108148,-646.37,0.00024109,2]
[337278648,1725573108158,-777.39,0.00024109,2]
[337278649,1725573108169,-4959.4,0.00024109,2]
[337278650,1725573108179,-1196.83,0.00024109,2]
[337278651,1725573108189,-500.0,0.00024109,2]
[337278652,1725573108200,-589.02,0.00024109,2]
[337278653,1725573108210,-500.0,0.00024109,2]
[337278654,1725573108222,-500.0,0.00024109,2]
[337278655,1725573108232,-500.0,0.00024109,2]
[337278656,1725573108413,-500.0,0.00024109,2]
[337278657,1725573108424,-500.0,0.00024109,2]
[337278658,1725573108434,-302.22357276,0.00024109,2]
[337278659,1725573108445,-500.0,0.00024109,2]
[337278660,1725573108455,-500.0,0.00024109,2]
[337278661,1725573108465,-948.09,0.00024109,2]
[337278662,1725573108475,-500.0,0.00024109,2]
[337278663,1725573108485,-500.0,0.00024109,2]
[337278664,1725573108495,-500.0,0.00024109,2]
[337278665,1725573108504,-500.0,0.00024109,2]
[337278666,1725573108514,-500.0,0.00024109,2]
[337278667,1725573108524,-403.05132435,0.00024109,2]
[337278668,1725573108536,-503.17794289,0.00024109,2]
[337278669,1725573108546,-500.0,0.00024109,2]
[337278670,1725573108555,-946.95,0.00024109,2]
[337278671,1725573108565,-500.0,0.00024109,2]
[337278672,1725573108575,-295.19686164,0.00024109,2]
[337278673,1725573108584,-500.0,0.00024109,2]
[337278674,1725573108594,-500.0,0.00024109,2]